Cogmind - Beta 16.1 @@@ ROGUE MODE // 2026.02.22 @ 20:59:48 Player: SunShine214 Result: Destroyed by Y-45 Defender with Heavy Assault Rifle Performance ------------- Evolutions (1) 500 Regions Visited (4) 800 Robots Destroyed (103) 515 Value Destroyed (2555) 2555 Prototype IDs (7) 140 Alien Tech Used (0) 0 Bonus (269) 269 TOTAL SCORE: 4779 Bonus ------- High Alert Combat Kills 103 Follower Combat Kills 166 Cogmind --------- Core Integrity 0/400 Matter 300/300 Energy 100/100 System Corruption 6% Temperature Cool (9) Movement Core (350) Ox6 Location -9/Recycling Parts ------- > --- POWER (1) -------- (None) > --- PROPULSION (3) --- (None) > --- UTILITY (3) ------ Large Storage Unit > --- WEAPON (2) ------- (None) > --- INVENTORY (15) --- Flight Unit Flight Unit Machine Analyzer Hardened Light Armor Plating Hacking Suite Hacking Suite Hacking Suite Hacking Suite Hacking Suite Authchip [R/Combat] Authchip [Processor] Rocket Launcher Rocket Launcher Flail Peak State ------------ > --- POWER ------------ Cooled Ion Engine > --- PROPULSION ------- Light Treads Light Treads > --- UTILITY ---------- Scrap Engine Large Storage Unit > --- WEAPON ----------- Advanced Beam Cannon Rocket Launcher > --- INVENTORY -------- Flight Unit Flight Unit Improved Flight Unit Light Armor Plating Hardened Light Armor Plating Hacking Suite Hacking Suite Hacking Suite Hacking Suite Hacking Suite Authchip [R/Combat] Authchip [Processor] Rocket Launcher Rocket Launcher Flail [Rating: 32] Favorites ----------- Power Ion Engine Engine Ion Engine Propulsion Improved Treads Treads Improved Treads Flight Unit Improved Flight Unit Utility Large Storage Unit Device Sensor Array Storage Large Storage Unit Processor Signal Interpreter Protection Light Armor Plating Weapon Rocket Launcher Energy Gun Heavy EM Pulse Gun Energy Cannon Advanced Beam Cannon Ballistic Gun Light Assault Rifle Ballistic Cannon Improved Light Cannon Launcher Rocket Launcher Special Weapon Mining Laser Impact Weapon Flail Slashing Weapon Mining Claw Build | -11 -10 -9 -9 -9 ------- Run | Yrd Mat Mat Sto Rec Slots Evolved 2 | . . 2 . . Power . | . . . . . Propulsion 1 | . . 1 . . Utility 1 | . . 1 . . Weapon . | . . . . . Parts Attached 46 | 7 14 7 16 2 Power 6 | 1 2 2 1 . Engine 6 | 1 2 2 1 . Core . | . . . . . Reactor . | . . . . . Propulsion 10 | 2 3 1 4 . Treads 9 | 2 3 1 3 . Leg . | . . . . . Wheel . | . . . . . Hover . | . . . . . Flight 1 | . . . 1 . Utility 13 | 2 3 2 5 1 Device 4 | 1 1 . 1 1 Storage 3 | 1 2 . . . Processor 1 | . . 1 . . Hackware . | . . . . . Protection 5 | . . 1 4 . Artifact . | . . . . . Weapon 17 | 2 6 2 6 1 Energy Gun 3 | . 1 1 1 . Energy Cannon 1 | . . . 1 . Ballistic Gun 3 | 2 1 . . . Ballistic Cannon 2 | . 2 . . . Launcher 4 | . . 1 2 1 Special Weapon 1 | . 1 . . . Impact Weapon 2 | . . . 2 . Slashing Weapon 1 | . 1 . . . Piercing Weapon . | . . . . . Special Melee Weapon . | . . . . . Unidentified Prototypes 7 | . . 2 4 1 Parts Lost 17 | . 1 2 7 7 Power 2 | . 1 . . 1 Propulsion 5 | . . . 2 3 Utility 5 | . . 1 4 . Weapon 5 | . . 1 1 3 Highest Loss Streak 5 | . 1 2 2 5 To Critical Strikes . | . . . . . Average Backups 12 | 1 9 14 14 14 Power . | . . . . . Propulsion 2 | . 2 4 3 2 Utility 5 | . 4 5 5 8 Weapon 3 | . 2 4 4 3 Tool/Special . | . . . . . Unused Backups 22 | . 2 6 1 13 Power . | . . . . . Propulsion 7 | . 1 3 1 2 Utility 11 | . 1 1 . 9 Weapon 4 | . . 2 . 2 Tool/Special . | . . . . . Average Slot Usage (%) 94 | . 99 90 94 86 Engine 12 | . 13 11 11 10 Treads 28 | . 28 29 30 27 Device 7 | . 14 7 1 . Storage 12 | . 14 11 11 11 Processor 5 | . . 11 11 7 Protection 3 | . . 2 7 7 Energy Gun 3 | . 7 7 . . Energy Cannon 2 | . . . 3 10 Ballistic Gun 5 | . 12 . . . Ballistic Cannon 1 | . 2 . . . Launcher 5 | . . 8 9 10 Impact Weapon 1 | . . . 6 . Slashing Weapon 2 | . 5 1 1 . Peak Build Rating 32 | 9 13 19 20 32 Average Rating 14 | 5 10 16 18 17 On Entrance 11 | . 9 13 18 18 Avg Prop Armor Cover (%) . | . . . . . Naked Turns . | . . . . . Heaviest Build 43 | 12 33 37 43 39 Greatest Support 69 | 40 46 69 69 63 Greatest Overweight (x) 9 | . . . . 9 Average Overweight (x) . | . . . . . Largest Inventory Capacity 15 | 8 15 15 15 15 Average Capacity 13 | 7 11 15 15 15 Most Carried 15 | 3 14 15 15 15 Average Carried 12 | 1 9 14 14 14 Final Capacity 15 | 8 15 15 15 15 Final Carried 15 | 3 14 14 15 14 Scrap Engine Consumption 3 | . . . . 3 Class Distribution -------------------- 94% | Mutant 5% | Commander-Mutant Dominant Class ---------------- Mutant | -10/Materials Mutant | -9/Materials Mutant | -9/Storage Mutant | -9/Recycling Resources | -11 -10 -9 -9 -9 ----------- Run | Yrd Mat Mat Sto Rec Matter Collected 1763 | 191 500 201 738 133 Remotely . | . . . . . Salvage Created 3045 | 107 799 389 1257 493 Parts 178 | 5 59 34 57 23 Haulers Intercepted 2 | . 1 1 . . Recyclers Shooed 3 | . 1 . 2 . Parts Field Recycled . | . . . . . Retrieved Matter . | . . . . . Parts Self-Destructed . | . . . . . Prevented . | . . . . . Parts Restored . | . . . . . Kills | -11 -10 -9 -9 -9 ------- Run | Yrd Mat Mat Sto Rec Combat Hostiles Destroyed 66 | . 17 18 23 8 Melee 7 | . . . 7 . Guns 20 | . 17 3 . . Cannons 6 | . . . 4 2 AOE 32 | . . 15 11 6 Classes Destroyed 15 | 2 7 1 1 4 Worker 1 | . 1 . . . Builder 8 | . 2 3 2 1 Tunneler 4 | 2 2 . . . Hauler 2 | . 1 1 . . Recycler 9 | 1 . 1 6 1 Mechanic 1 | . . . 1 . Operator 8 | . 4 . 4 . Watcher 4 | . 1 3 . . Swarmer 13 | . 3 10 . . Grunt 38 | . 14 7 14 3 Duelist 1 | . . . . 1 Sentry 10 | . . 1 9 . Hunter 1 | . . . . 1 Scientist 1 | . . . . 1 Scrapper 3 | . . . . 3 Best Kill Streak 14 | 3 6 14 9 7 Combat Bots Only 9 | . 6 9 3 5 Max Kills in Single Turn 4 | 2 1 4 4 4 Gunslinging . | . . . . . Exploded 4 | . . 4 2 2 Melee 1 | . . . 1 . Uniques/NPCs Destroyed . | . . . . . Combat | -11 -10 -9 -9 -9 -------- Run | Yrd Mat Mat Sto Rec Hostile Shots Fired 306 | . 68 30 130 78 Missed 96 | . 16 13 46 21 Hits 210 | . 52 17 84 57 Projectile 210 | . 52 17 84 57 Critical Strikes 3 | . . . 1 2 Damage Taken 3119 | . 627 204 1305 983 Core 517 | . 107 26 115 269 Absorbed by Shields . | . . . . . Core Remaining (%) 78 | 100 57 . . . Volleys Fired 158 | 6 78 21 46 7 Largest 2 | 2 2 2 2 2 Hottest 120 | 40 120 78 101 101 Shots Fired 259 | 12 143 37 53 14 Gun 169 | 12 141 16 . . Cannon 32 | . . . 25 7 Launcher 56 | . . 21 28 7 Special 2 | . 2 . . . Kinetic 147 | 12 128 . 7 . Thermal 27 | . 2 . 18 7 Explosive 56 | . . 21 28 7 Electromagnetic 29 | . 13 16 . . Robot Hit Streak 8 | 5 8 5 8 4 Robot Miss Streak 6 | 2 6 4 5 1 Penetration Max . | . . . . . Secondary Targets . | . . . . . Shots Hit Robots 187 | 8 93 20 59 7 Core Hits 161 | 4 43 35 57 22 Critical Kills 4 | . 1 . 3 . Critical Parts Destroyed 4 | . 1 . 3 . Critical Strikes 9 | . 2 1 6 . Destroy 2 | . 2 . . . Corrupt 1 | . . 1 . . Smash 6 | . . . 6 . Melee Attacks 53 | . 14 . 39 . Impact 38 | . . . 38 . Slashing 15 | . 14 . 1 . Piercing . | . . . . . Sneak Attacks 10 | . 7 . 3 . Combat Hostiles . | . . . . . Follow-up Attacks . | . . . . . Damage Inflicted 7309 | 103 1364 1602 3286 954 Guns 1225 | 102 952 171 . . Cannons 412 | . . . 349 63 Explosions 4168 | . . 1419 1899 850 Melee 1394 | . 356 . 1038 . Ramming 86 | 1 32 12 . 41 Kinetic 1014 | 102 830 . 82 . Thermal 375 | . 24 21 267 63 Explosive 4147 | . . 1398 1899 850 Electromagnetic 293 | . 122 171 . . Impact 1038 | . . . 1038 . Slashing 356 | . 356 . . . Piercing . | . . . . . Highest Corruption 6 | . 4 5 6 6 Average Corruption 5 | . 3 5 5 6 Corruption Purged . | . . . . . Corruption Blocked . | . . . . . Effects 95 | . 20 5 44 26 Message Errors 26 | . 5 3 11 7 Matter Fused 22 | . 1 1 13 7 Heat Flow Errors 9 | . 3 . 6 . Energy Discharges 10 | . 3 1 5 1 Parts Fused 2 | . 1 . . 1 Data Loss (minor) 17 | . 4 . 6 7 Data Loss (major) 3 | . 1 . 1 1 Misfires 2 | . . . 2 . Alerts 4 | . 2 . . 2 Overload Shots . | . . . . . Overflow Damage 387 | . 93 29 226 39 Projectiles 11 | . . . 11 . Explosions 119 | . . 29 51 39 Melee 257 | . 93 . 164 . Knockbacks 3 | . . . 3 . Impact 3 | . . . 3 . Kinetic . | . . . . . Secondary . | . . . . . Self-Inflicted Damage 289 | . . 26 197 66 Shots 10 | . . 1 7 2 Rammed 17 | 1 10 2 . 4 Targets Rammed 19 | 1 10 3 . 5 Kicked . | . . . . . Crushed 2 | . . 1 . 1 Highest Temperature 409 | . 275 147 409 125 Average Temperature 64 | . 38 50 91 54 Received Heat Transfer 1192 | . 312 57 483 340 Effects 1 | . . . 1 . Energy Bleed 1 | . . . 1 . Siege Activations . | . . . . . Martial Activations . | . . . . . Shielding Activations . | . . . . . Robots Disrupted . | . . . . . Combat Hostiles . | . . . . . Robots Corrupted 2 | . . . 2 . Combat Hostiles 1 | . . . 1 . Parts Fried 2 | . 1 . 1 . Impact Corruptions 8 | . . . 8 . Robots Melted . | . . . . . Combat Hostiles . | . . . . . Parts Melted . | . . . . . Heat Transferred 668 | . 50 50 481 87 Parts Sabotaged . | . . . . . Parts Stolen . | . . . . . Parts Stripped . | . . . . . Power Chain Reactions 1 | . . 1 . . Alert | -11 -10 -9 -9 -9 ------- Run | Yrd Mat Mat Sto Rec Maximum Alert Level 3 | . . 1 3 2 Low Security (%) 59 | 100 100 25 11 54 Level 1 24 | . . 74 30 45 Level 2 13 | . . . 50 . Level 3 1 | . . . 7 . Level 4 . | . . . . . Level 5 . | . . . . . High Security . | . . . . . Max Security . | . . . . . Peak Influence 759 | 15 150 389 759 392 Initial 252 | . . 1 160 252 Average 194 | 2 51 229 422 181 Influence Increases 2504 | 15 527 599 1191 172 Destroy 0b10 Robot/C 1380 | . 340 360 580 100 Destroy 0b10 Robot/NC 210 | 15 55 40 70 30 Destroy Leader 342 | . 84 68 190 . Allied During Kill 84 | . . . 79 5 Successful Hack 29 | . 13 8 8 . Disable Machine 75 | . 30 15 30 . Destroy Structure 339 | . 5 108 189 37 Lose Combat Pursuer 45 | . . . 45 . Influence Decreases 2504 | 15 522 223 925 819 Entered New Map 620 | . . 4 221 395 Time Decay 1594 | 15 512 199 494 374 Lost Part 130 | . 10 20 70 30 Lost Ally 160 | . . . 140 20 Squads Dispatched 14 | . 5 2 7 . Investigation 2 | . 1 . 1 . Extermination . | . . . . . Reinforcement 10 | . 4 2 4 . Assault . | . . . . . Garrison 2 | . . . 2 . Intercept . | . . . . . Searches Triggered . | . . . . . Construction Impeded 3 | . . 2 1 . Haulers Reinforced . | . . . . . Active Scanning Responses . | . . . . . Cargo Convoy Interrupts . | . . . . . Stealth | -11 -10 -9 -9 -9 --------- Run | Yrd Mat Mat Sto Rec Distress Signals 8 | . 1 4 3 . Communications Jammed . | . . . . . Distress Signals . | . . . . . Times Spotted 101 | . 33 21 41 6 Peak Tracking Total 5 | . 5 5 5 4 Tactical Retreats 2 | . . . 2 . Traps | -11 -10 -9 -9 -9 ------- Run | Yrd Mat Mat Sto Rec Traps Triggered 7 | . 5 1 1 . Indirectly . | . . . . . Trap Hack Attempts . | . . . . . Triggered . | . . . . . Disarmed . | . . . . . Reprogrammed . | . . . . . Reused . | . . . . . Traps Extracted . | . . . . . Installed . | . . . . . Triggered . | . . . . . Machines | -11 -10 -9 -9 -9 ---------- Run | Yrd Mat Mat Sto Rec Machines Disabled 5 | . 2 1 2 . Max in Single Turn 1 | . 1 1 1 . Machines Repaired . | . . . . . Machines Dismantled . | . . . . . Machines Sabotaged . | . . . . . Overloaded Fab Kills . | . . . . . Hacking | -11 -10 -9 -9 -9 --------- Run | Yrd Mat Mat Sto Rec Machines Accessed 12 | . 3 2 5 2 Terminals 11 | . 3 2 5 1 Fabricators . | . . . . . Repair Stations . | . . . . . Recycling Units . | . . . . . Scanalyzers . | . . . . . Garrison Access . | . . . . . Total Hacks 28 | . 3 3 14 8 Successful 7 | . 2 1 1 3 Failed 21 | . 1 2 13 5 Catastrophic 3 | . 1 . 2 . Database Lockouts . | . . . . . Manual 12 | . 2 3 3 4 Terminals 26 | . 3 3 14 6 Fabricators . | . . . . . Repair Stations . | . . . . . Recycling Units . | . . . . . Scanalyzers . | . . . . . Garrison Access . | . . . . . Terminal Hacks 7 | . 2 1 1 3 Part Schematic 1 | . . . 1 . Robot Analysis 1 | . . . . 1 Branch Access Points 2 | . 1 1 . . Hauler Manifests 1 | . 1 . . . Release Object 2 | . . . . 2 Fabricator Hacks . | . . . . . Repair Station Hacks . | . . . . . Recycling Unit Hacks . | . . . . . Scanalyzer . | . . . . . Garrison Access Hacks . | . . . . . Unauthorized Hacks . | . . . . . Terminals . | . . . . . Fabricators . | . . . . . Repair Stations . | . . . . . Recycling Units . | . . . . . Scanalyzers . | . . . . . Garrison Access . | . . . . . Data Cores Recovered . | . . . . . Used . | . . . . . Hacking Detections 9 | . 1 2 5 1 Full Trace Events 3 | . . . 2 1 Feedback Events . | . . . . . Feedback Blocked . | . . . . . Robot Schematics Acquired . | . . . . . Robots Built . | . . . . . Authchips . | . . . . . Time . | . . . . . Total Robot Build Rating . | . . . . . Part Schematics Acquired 1 | . . . 1 . Parts Built . | . . . . . Authchips . | . . . . . Time . | . . . . . Total Part Build Rating . | . . . . . Part Studies Acquired . | . . . . . Parts Repaired . | . . . . . Time . | . . . . . Parts Recycled . | . . . . . Recycled Matter . | . . . . . Retrieved Matter . | . . . . . Retrieved Components . | . . . . . Parts Scanalyzed . | . . . . . Part Schematics Acquired . | . . . . . Parts Damaged . | . . . . . Bothacking | -11 -10 -9 -9 -9 ------------ Run | Yrd Mat Mat Sto Rec Used RIF Installer . | . . . . . Robots Hacked . | . . . . . Non-combat . | . . . . . Combat . | . . . . . Robot Hacks Applied . | . . . . . Relay Couplers Released . | . . . . . Fabnet Peak Effective % . | . . . . . Robots Rewired . | . . . . . Allies Hacked . | . . . . . Hacks Repelled . | . . . . . Allies | -11 -10 -9 -9 -9 -------- Run | Yrd Mat Mat Sto Rec Total Allies 10 | . . . 10 . Largest Group 10 | . . . 10 1 Highest-Rated Group 88 | . . . 88 8 Highest-Rated Ally 16 | . . . 16 8 Total Orders . | . . . . . Ally Attacks 56 | . . . 49 7 Total Damage 420 | . . . 367 53 Kills 6 | . . . 6 . Allies Corrupted . | . . . . . Allies Melted . | . . . . . Intel | -11 -10 -9 -9 -9 ------- Run | Yrd Mat Mat Sto Rec Active Infowar (turns) 2552 | 28 1979 357 188 . Sensors 2255 | . 1710 357 188 . Terrain 297 | 28 269 . . . Robot Analysis Total 1 | . . . . 1 Derelict Logs Recovered . | . . . . . Drone Launches . | . . . . . Drone Recoveries . | . . . . . Exploration | -11 -10 -9 -9 -9 ------------- Run | Yrd Mat Mat Sto Rec Turns Passed 4832 | 109 1979 513 1301 930 Spaces Moved 2387 | 53 999 259 558 518 Core 7 | 6 . . . 1 Treads 2380 | 47 999 259 558 517 Legs . | . . . . . Wheels . | . . . . . Hover . | . . . . . Flight . | . . . . . Fastest Speed 50 | 50 160 160 160 160 Average Speed 160 | 147 160 160 160 162 Slowest Speed 500 | 160 160 160 160 500 Overloaded Moves . | . . . . . Propulsion Burnouts . | . . . . . Robots Hopped . | . . . . . Potential Cave-ins . | . . . . . Cave-ins Triggered . | . . . . . Exploration Rate (%) 53 | 4 90 30 87 57 Regions Visited 4 Branch Regions 2 Pre-discovered Areas . | . . . . . Known Exits Taken 2 | . . 1 1 . Unknown Exits Taken 2 | 1 1 . . . Scrap Searched . | . . . . . Spaces Dug 7 | . 4 . 3 . Terrain Destroyed 443 | . 4 123 251 65 Melee 7 | . 4 . 3 . Projectile 1 | . . . . 1 AOE 435 | . . 123 248 64 Terrain Rammed . | . . . . . Walls Destroyed . | . . . . . Machines Disabled . | . . . . . Actions | -11 -10 -9 -9 -9 --------- Run | Yrd Mat Mat Sto Rec Total 3043 | 69 1214 321 846 593 Wait 302 | . 68 8 171 55 Move 2383 | 52 998 258 557 518 Hop . | . . . . . Pick Up 37 | 3 16 11 6 1 Fast Attach 21 | 7 3 4 6 1 Attach 9 | . . 4 4 1 Detach 5 | . . . 2 3 Swap 29 | . 15 3 11 . Drop 28 | . 12 9 5 2 Fire 158 | 6 78 21 46 7 Melee 52 | . 14 . 38 . Ram . | . . . . . Kick . | . . . . . Crush 19 | 1 10 3 . 5 Escape Stasis . | . . . . . Rewire . | . . . . . Trap . | . . . . . Miscellaneous . | . . . . . Route ------- -11/Scrapyard -10/Materials (discovered 4 exits: *Mat x3 / *Min) -9/Materials (discovered 5 exits: *Mat / *Min x2 / *Sto x2) -9/Storage (discovered 2 exits: *Mat / *Rec) -9/Recycling History --------- Turn | Location | Event 11 | -11/Scrapyard | Discovered new exit (range 16) 110 | -11/Scrapyard | Entered Materials 301 | -10/Materials | Build established: Mutant 555 | -10/Materials | Discovered new exit (range 15) 709 | -10/Materials | Identified exit to Mines 752 | -10/Materials | Discovered new exit (range 15) 1200 | -10/Materials | Discovered new exit (range 11) 2089 | -10/Materials | Entered another Materials area 2089 | -9/Materials | Evolved 2 slots: Propulsion x1, Utility x1 2248 | -9/Materials | Destroyed 9 combat bots 2301 | -9/Materials | Discovered new exit (range 10) 2314 | -9/Materials | Identified exit to Materials 2431 | -9/Materials | Identified exit to Mines 2431 | -9/Materials | Identified exit to Storage 2602 | -9/Materials | Entered Storage 3553 | -9/Storage | Discovered exit to Materials (range 15) 3666 | -9/Storage | Assisted by bots powering up and referring to "LRC-V3" 3802 | -9/Storage | Garrison activated, responded to threat 3854 | -9/Storage | Used back door to open Recycling access 3854 | -9/Storage | Discovered new exit (range 5) 3859 | -9/Storage | Identified exit to Recycling 3903 | -9/Storage | Entered Recycling 3903 | -9/Recycling | Accompanied by 1 ally 3931 | -9/Recycling | Lost 5 allies 4429 | -9/Recycling | Scanned before Scraplab entrance 4437 | -9/Recycling | Angered Scraplab inhabitants 4497 | -9/Recycling | Core integrity fell below 50% 4526 | -9/Recycling | Found Prototype Device 4526 | -9/Recycling | Identified Scrap Engine 4817 | -9/Recycling | Core integrity fell below 20% 4833 | -9/Recycling | Destroyed by Y-45 Defender with Heavy Assault Rifle Last Messages --------------- 04590_ The unstable cave ceiling collapses. 04596_ 53 Matter crushed. 04599_ Dropped Lgt. Armor Plating. 04600_ Scrap Engine consumes Lgt. Armor Plating. 04600_ Discarded Scrap Engine. 04639_ TMU9EUGRQS8<9|Y UYE0FRVHAMXVT1LFIC ZTH52IX>/JEOUWLB,JUR Map ----- +----------------------------------------------------+ | ??????????????????????????# #################??? | | ????????##########????????# # #??? | | ????????# #????????# % + #?## | | ????????# ????????#### # """ #?# | | ????????# #???????????# ####### """ #?# | | ????????# #?###########+#####?# """ #?# | | ????????# #?# #?# #?# | | ????????# #?# """"" "" #?# #?# | | ????????# ### """"""""" Y" #?########?# | | ????????? ?# """ """ "" #????#####?# | | ??????????? ???# #????#"""#?#! | | ????#########+#########r#################"Y"#### | | ????# | | ????# | | ????# | | ????# """"" """"" ### ##### ######+##+# | | ????# """"" """"" #?###???# #???# | | ????# """"" """" Y #???????# #???# | | ????# #???????# #???# "" | | ????# #???????# #???# "" | | ????# ############# #########/##??# "" | | ????# ??# #?# ## """"" #??# "" | | ????# ??# T #?# ## """"" "#??# "" | | ???? #?# #?# ## """"" T#??# | | ????# #?# #?# ## "#??# | | ????# #?# #?# @ ## #??####### | | ????# ]?# """ #?# ## #????????? | | ????# ]?# """ #?# ## #????????? | | ????# ]?# """ #?# ## #????????? | | ??### #?# ### ######/######???????? | | ??#"" #?# """ # #???????? | | ??#"Y #?# """ + #???????? | | ??#"" ### """ # #???????? | | ????# + # ###+######"Y"#######???????? | | ????# ### """ # # ???#"""#?????????????? | | ????# #?# """ # # #?#####?????????????? | | ????# #?# """ # #? / #???????????????????? | | ????# #?# # #? = #???????????????????? | | ????# ### """ # #? #???????????????????? | | ????# ""# """ # #?] % #???????????????????? | | ????# Y"# """ # ?? [ !#???????????????????? | | ????# ""# ? ?? ! =#???????????????????? | | ????# ########?#? #?%= #???????????????????? | | ????# #???####### #????/ #???????????????????? | | ????# #???# +???? #???????????????????? | | ????# #???# #????? ????????????????????? | | ????# ##### """ #??????????????????????????? | | ????# """ #??????????????????????????? | | ????# ##### """ #??????????????????????????? | | ????# #???# #??????????????????????????? | +----------------------------------------------------+ Best States ------------- Heat Dissipation 28 Energy Generation 14 Energy Capacity 280 Matter Stores 300 Matter Capacity 300 Sight Range 16 Robot Scan Range 14 Terrain Scan Range 16 Terrain Scan Density 10 Armor Coverage 225 Evasion (%) 40 Recoil Reduction 3 Authchip Count 3 Item Schematics ----------------- Med. Armor Plating | -9/Storage | Hacked Robot Schematics ------------------ None Fabricated ------------ Nothing Repaired ---------- Nothing Studied --------- None Alien Tech Used ----------------- None Achievements -------------- None Challenges ------------ None Game ------ Seed MassDeliveryConstruct Manual? 0 Play Time 00:28:36 Cumulative 91.3 hours Start 2026.02.22 @ 20:31:16 End 2026.02.22 @ 20:59:48 Sessions 1 Manual Loads 0 Difficulty Rogue Special Mode None Game No. 144 Rogue 144 Adventurer 0 Explorer 0 Win Type - Total 1 Types 1/0/0/0/0/0/0/0/0/0 Lore% 44 Gallery% 48 Achievement% 34 Wizard Run 0 Options --------- Layout 1 ASCII 0 Keyboard 1 Movement Arrows Keybinds 0 Fullscreen 1 Font 24/Smallcaps Map View 50x35 Zoom Use 0% Tactical HUD 1 Map Filters NONE Filters NONE Steam 1 RUN: ddcfca79-829c-4811-bddf-9ed17166edbd